{"text_format":"1","workbook":"xlsx","n_sheets":9,"sheets":["بيانات","الاحوال","مدفوعات الطلاب","سداد لموظف","برمجة","غياب الطلاب","حساب","الامتحان","بيان"],"not_rendered":{"charts":0,"images":0,"macros":1,"external_links":0,"defined_names":18,"comments":0,"pivot_tables":0},"unopened":[],"bounds":{"document_bytes":16777216,"sheet_cells":100000,"rows_first":2000,"rows_last":500,"rows_between":2000,"halvings":0,"cell_chars":16384,"cell_head_chars":4096},"cells_cut":0,"cells_raw":0,"read":"whole","date_system":"1900"}

{"sheet":"بيانات","index":0,"n_rows":4,"n_cols":14,"rows_kept":4,"cut":false,"hidden":false,"merged":[]}
[null,null,{"$f":"MAX(A4:A12)+1","v":3},null,null,null,null,null,null,null,500,"عدد"]
[]
["الكود","اسم الطالب","اسم ولى الامر","مهنة ولى الامر وعنوانه","تليفون ولى الامر","الصف والشعبة","وقت المجموعة الاول","اسم المجموعة","وقت المجموعة الثانى","يوم المجموعة الاول","تليفون الطالب","تاريخ الحجز","التخصص","يوم المجموعة الثاني"]
[2,"محمد على2","على","موظف","0147","الثالث اعدادى","الساعة 6 صباحا","مجموعة3","الساعة 6.5 صباحا","السبت","0258","2022-01-08","عام","الأربعاء"]

{"sheet":"الاحوال","index":1,"n_rows":23,"n_cols":12,"rows_kept":23,"cut":false,"hidden":false,"merged":[[20,2,21,2],[18,1,19,1]]}
[]
[]
[null,null,null,"الاسم"]
[null,null,null,"محمد على",null,null,null,null,null,null,null,"يناير"]
[null,"عن شهر","يوليه",null,null,null,null,null,null,null,null,"فبراير"]
[null,"الاسم",{"$f":"$D$4","v":"محمد على"},null,null,null,null,null,null,null,null,"مارس"]
[null,null,null,null,null,null,null,null,null,null,null,"أبريل"]
[null,"اسم ولى الامر",{"$f":"VLOOKUP($D$4,بيانات!$B$4:$T$81,2,0)","v":{"$error":"#N/A"}},null,null,null,null,null,null,null,null,"مايو"]
[null,"وظيفة ولى الامر",{"$f":"VLOOKUP($D$4,بيانات!$B$4:$T$81,3,0)","v":{"$error":"#N/A"}},null,null,null,null,null,null,null,null,"يونيو"]
[null,"تليفون ولى الامر",{"$f":"VLOOKUP($D$4,بيانات!$B$4:$T$81,4,0)","v":{"$error":"#N/A"}},null,null,null,null,null,null,null,null,"يوليه"]
[null,"الصف",{"$f":"VLOOKUP($D$4,بيانات!$B$4:$T$81,5,0)","v":{"$error":"#N/A"}},null,null,null,null,null,null,null,null,"أغسطس"]
[null,"النوع",{"$f":"VLOOKUP($D$4,بيانات!$B$4:$T$81,6,0)","v":{"$error":"#N/A"}},null,null,null,null,null,null,null,null,"سبتمبر"]
[null,"اسم المجموعة",{"$f":"VLOOKUP($D$4,بيانات!$B$4:$T$81,7,0)","v":{"$error":"#N/A"}},null,null,null,null,null,null,null,null,"أكتوبر"]
[null,"وقت المجموعة الثانى",{"$f":"VLOOKUP($D$4,بيانات!$B$4:$T$81,8,0)","v":{"$error":"#N/A"}},null,null,null,null,null,null,null,null,"نوفمبر"]
[null,"وقت المجموعة الاول",{"$f":"VLOOKUP($D$4,بيانات!$B$4:$T$81,6,0)","v":{"$error":"#N/A"}}]
[null,"يوم المجموعة الاول",{"$f":"VLOOKUP($D$4,بيانات!$B$4:$T$81,9,0)","v":{"$error":"#N/A"}},null,null,null,null,null,null,null,null,"ديسمبر"]
[null,"يوم المجموعة الثانى",{"$f":"VLOOKUP($D$4,بيانات!$B$4:$T$81,13,0)","v":{"$error":"#N/A"}}]
[null,"تليفون الطالب",{"$f":"VLOOKUP($D$4,بيانات!$B$4:$T$81,10,0)","v":{"$error":"#N/A"}}]
[null,"ايام الغياب هذا الشهر",{"$f":"SUMIFS('غياب الطلاب'!$B:$B,'غياب الطلاب'!$A:$A,الاحوال!$D$4,'غياب الطلاب'!$E:$E,الاحوال!$C$5)","v":9}]
[null,null,{"$f":"IF(C19>=2,\"إنذار اخير\",IF(C19=1,\"إنذار اول\",IF(C19=0,\"لم يتغيب هذا الشهر\")))","v":"إنذار اخير"}]
[null,"الدرجة",{"$f":"SUMIFS(الامتحان!$B:$B,الامتحان!$A:$A,الاحوال!$D$4,الامتحان!C:C,الاحوال!$C$5)","v":33}]
[null,50]
[null,"المستوى",{"$f":"IF(C21<=24,\"ضعيف\",IF(C21<=25,\"متوسط\",IF(C21<=35,\"جيد\",IF(C21<=40,\"جيدجدا\",IF(C21<=50,\"ممتاز\")))))","v":"جيد"}]

{"sheet":"مدفوعات الطلاب","index":2,"n_rows":5,"n_cols":5,"rows_kept":5,"cut":false,"hidden":false,"merged":[]}
[]
["الاسم","المبلغ","التاريخ","الشهر","الوظيفة"]
["محمد على",55,"2022-01-04","أبريل","طالب"]
["محمد على",4,"2022-01-07","يوليه","طالب"]
["محمد على",2,"2022-03-06","يونيو","طالب"]

{"sheet":"سداد لموظف","index":3,"n_rows":5,"n_cols":6,"rows_kept":5,"cut":false,"hidden":false,"merged":[]}
[null,"سداد موظفين",null,null,null,200]
["الاسم","المبلغ","اليوم","الشهر","نوع السداد"]
["موظف1",10,"2022-01-07","يوليه","من الراتب"]
["موظف2",1,"2022-01-08","أبريل","من الراتب"]
["موظف1",44,"2022-01-07","يوليه","من الراتب"]

{"sheet":"برمجة","index":4,"n_rows":51,"n_cols":12,"rows_kept":51,"cut":false,"hidden":false,"merged":[]}
[null,null,null,"الاول اعدادى"]
["مجموعة1","ذكر","حضور","الثانى اعدادى","السبت"]
["مجموعة2","انثى","غياب","الثالث اعدادى","الأحد",null,null,"يناير"]
["مجموعة3",null,null,"الاول ثانوى","الإثنين",null,null,"فبراير"]
["مجموعة4",null,null,"الثانى ثانوى","الثلاثاء",null,null,"مارس"]
["مجموعة5",null,null,"الثالث ثانوى","الأربعاء",null,null,"أبريل"]
["مجموعة6",null,null,null,"الخميس",null,null,"مايو"]
["مجموعة7",null,null,null,"الجمعة",null,null,"يونيو"]
["مجموعة8",null,null,null,null,null,null,"يوليه","طالب","من الراتب","اسماء الموظفين","موظف"]
["مجموعة9","تخصص",null,null,null,null,null,"أغسطس","موظف","سلفة","موظف1","طالب"]
["مجموعة10","عام",null,null,null,null,null,"سبتمبر",null,null,"موظف2"]
["مجموعة11","ادبى",null,null,null,null,null,"أكتوبر",null,null,"موظف3"]
["مجموعة12","علمى رياضيات",null,"الانذار ارقم 1",null,null,"الساعة 6 صباحا","نوفمبر",null,null,"موظف4"]
["مجموعة13","علمى علوم",null,"الانذار ارقم 2",null,"04:30:00","الساعة 6.5 صباحا","ديسمبر",null,null,"موظف5"]
["مجموعة14","لا يوجد تخصص",null,"الانذار ارقم 3",null,"05:30:00","الساعة 7 صباحا",null,"بعذر",null,"موظف6"]
["مجموعة15",null,null,"الانذار ارقم 4",null,"06:30:00","الساعة 7.5 صباحا",null,"بدون عذر",null,"موظف7"]
["مجموعة16",null,null,"الانذار ارقم 5",null,"07:30:00","الساعة 8 صباحا",null,null,null,"موظف8"]
["مجموعة17",null,null,"الانذار ارقم 6",null,"08:30:00","الساعة 8.5 صباحا",null,null,null,"موظف9"]
["مجموعة18",null,null,"الانذار ارقم 7",null,"09:30:00","الساعة 9 صباحا",null,null,null,"موظف10"]
["مجموعة19",null,null,"الانذار ارقم 8",null,"10:30:00","الساعة 9.5 صباحا"]
["مجموعة20",null,null,"الانذار ارقم 9",null,"11:30:00","الساعة 10 صباحا"]
[null,null,null,"الانذار ارقم 10",null,"00:00:00","الساعة 1.5 صباحا"]
[null,null,null,"الانذار ارقم 11",null,"12:30:00","الساعة 11 صباحا"]
[null,null,null,"الانذار ارقم 12",null,"13:00:00","الساعة 11.5 صباحا"]
[null,null,null,"الانذار ارقم 13",null,"13:30:00","الساعة 12 صباحا"]
[null,null,null,"الانذار ارقم 14",null,"14:00:00","الساعة 11.5 صباحا"]
[null,null,null,"الانذار ارقم 15",null,"14:30:00","الساعة 12 صباحا"]
[null,null,null,"الانذار ارقم 16",null,"03:00: م","الساعة 11.5 صباحا"]
[null,null,null,"الانذار ارقم 17",null,"15:30:00","الساعة 12 صباحا"]
[null,null,null,"الانذار ارقم 18",null,"16:00:00","الساعة 12.5 صباحا"]
[null,null,null,"الانذار ارقم 19",null,"16:30:00","الساعة 1 مساءً"]
[null,null,null,"الانذار ارقم 20",null,"17:00:00","الساعة 1.5 مساءً"]
[null,null,null,null,null,"17:30:00","الساعة 1 مساءً"]
[null,null,null,null,null,"18:00:00","الساعة 1.5 مساءً"]
[null,null,null,null,null,"18:30:00","الساعة 2 مساءً"]
[null,null,null,null,null,"19:00:00","الساعة 2.5 مساءً"]
[null,null,null,null,null,"19:30:00","الساعة 3 مساءً"]
[null,null,null,null,null,"20:00:00","الساعة 3.5 مساءً"]
[null,null,null,null,null,"20:30:00","الساعة 4 مساءً"]
[null,null,null,null,null,"21:00:00","الساعة 4.5 مساءً"]
[null,null,null,null,null,"21:30:00","الساعة 5 مساءً"]
[null,null,null,null,null,"22:00:00","الساعة 5.5 مساءً"]
[null,null,null,null,null,"22:30:00","الساعة 6 مساءً"]
[null,null,null,null,null,"23:00:00","الساعة 6.5 مساءً"]
[null,null,null,null,null,"23:30:00","الساعة 7 مساءً"]
[null,null,null,null,null,null,"الساعة 7.5 مساءً"]
[null,null,null,null,null,null,"الساعة 8 مساءً"]
[null,null,null,null,null,null,"الساعة 8.5 مساءً"]
[null,null,null,null,null,null,"الساعة 9 مساءً"]
[null,null,null,null,null,null,"الساعة 9.5 مساءً"]
[null,null,null,null,null,null,"الساعة 6 صباحا"]

{"sheet":"غياب الطلاب","index":5,"n_rows":5,"n_cols":5,"rows_kept":5,"cut":false,"hidden":false,"merged":[]}
[null,null,"غياب الطلاب"]
["الاسم","عدد ايام الغياب","نوع الغياب","التاريخ","الشهر"]
["محمد على",5,"بعذر","2022-01-07","يوليه"]
["محمد على",4,"بعذر","2022-01-07","يوليه"]
["محمد على",2,"بعذر","2022-01-06","يونيو"]

{"sheet":"حساب","index":6,"n_rows":19,"n_cols":15,"rows_kept":19,"cut":false,"hidden":false,"merged":[[1,1,1,6],[1,8,1,14],[11,1,11,6],[2,3,2,4],[12,3,12,4],[11,9,12,9],[2,9,2,11]]}
[]
[null,"مدفوعات الطلاب",null,null,null,null,null,null,"غياب الطلاب"]
[null,null,"الاسم","محمد على",null,null,null,null,"الاسم","محمد على",null,null,null,"نوع الغياب","بعذر"]
[null,"يناير","فبراير","مارس","أبريل","مايو","يونيو",null,"الشهر","يناير","فبراير","مارس","أبريل","مايو","يونيو"]
[null,{"$f":"SUMIFS('مدفوعات الطلاب'!$B:$B,'مدفوعات الطلاب'!$A:$A,حساب!$D$3,'مدفوعات الطلاب'!$D:$D,حساب!B$4)","v":0},{"$f":"SUMIFS('مدفوعات الطلاب'!$B:$B,'مدفوعات الطلاب'!$A:$A,حساب!$D$3,'مدفوعات الطلاب'!$D:$D,حساب!C$4)","v":0},{"$f":"SUMIFS('مدفوعات الطلاب'!$B:$B,'مدفوعات الطلاب'!$A:$A,حساب!$D$3,'مدفوعات الطلاب'!$D:$D,حساب!D$4)","v":0},{"$f":"SUMIFS('مدفوعات الطلاب'!$B:$B,'مدفوعات الطلاب'!$A:$A,حساب!$D$3,'مدفوعات الطلاب'!$D:$D,حساب!E$4)","v":55},{"$f":"SUMIFS('مدفوعات الطلاب'!$B:$B,'مدفوعات الطلاب'!$A:$A,حساب!$D$3,'مدفوعات الطلاب'!$D:$D,حساب!F$4)","v":0},{"$f":"SUMIFS('مدفوعات الطلاب'!$B:$B,'مدفوعات الطلاب'!$A:$A,حساب!$D$3,'مدفوعات الطلاب'!$D:$D,حساب!G$4)","v":2},null,"غياب",{"$f":"SUMIFS('غياب الطلاب'!$B:$B,'غياب الطلاب'!$A:$A,حساب!$J$3,'غياب الطلاب'!$E:$E,حساب!J$4)","v":0},{"$f":"SUMIFS('غياب الطلاب'!$B:$B,'غياب الطلاب'!$A:$A,حساب!$J$3,'غياب الطلاب'!$E:$E,حساب!K$4)","v":0},{"$f":"SUMIFS('غياب الطلاب'!$B:$B,'غياب الطلاب'!$A:$A,حساب!$J$3,'غياب الطلاب'!$E:$E,حساب!L$4)","v":0},{"$f":"SUMIFS('غياب الطلاب'!$B:$B,'غياب الطلاب'!$A:$A,حساب!$J$3,'غياب الطلاب'!$E:$E,حساب!M$4)","v":0},{"$f":"SUMIFS('غياب الطلاب'!$B:$B,'غياب الطلاب'!$A:$A,حساب!$J$3,'غياب الطلاب'!$E:$E,حساب!N$4)","v":0},{"$f":"SUMIFS('غياب الطلاب'!$B:$B,'غياب الطلاب'!$A:$A,حساب!$J$3,'غياب الطلاب'!$E:$E,حساب!O$4)","v":2}]
[null,null,null,null,null,null,null,null,"بعذر او بدون عذر",{"$f":"SUMIFS('غياب الطلاب'!$B:$B,'غياب الطلاب'!$A:$A,حساب!$J$3,'غياب الطلاب'!$C:$C,حساب!$O$3,'غياب الطلاب'!$E:$E,حساب!J$4)","v":0},{"$f":"SUMIFS('غياب الطلاب'!$B:$B,'غياب الطلاب'!$A:$A,حساب!$J$3,'غياب الطلاب'!$C:$C,حساب!$O$3,'غياب الطلاب'!$E:$E,حساب!K$4)","v":0},{"$f":"SUMIFS('غياب الطلاب'!$B:$B,'غياب الطلاب'!$A:$A,حساب!$J$3,'غياب الطلاب'!$C:$C,حساب!$O$3,'غياب الطلاب'!$E:$E,حساب!L$4)","v":0},{"$f":"SUMIFS('غياب الطلاب'!$B:$B,'غياب الطلاب'!$A:$A,حساب!$J$3,'غياب الطلاب'!$C:$C,حساب!$O$3,'غياب الطلاب'!$E:$E,حساب!M$4)","v":0},{"$f":"SUMIFS('غياب الطلاب'!$B:$B,'غياب الطلاب'!$A:$A,حساب!$J$3,'غياب الطلاب'!$C:$C,حساب!$O$3,'غياب الطلاب'!$E:$E,حساب!N$4)","v":0},{"$f":"SUMIFS('غياب الطلاب'!$B:$B,'غياب الطلاب'!$A:$A,حساب!$J$3,'غياب الطلاب'!$C:$C,حساب!$O$3,'غياب الطلاب'!$E:$E,حساب!O$4)","v":2}]
[null,"يوليه","أغسطس","سبتمبر","أكتوبر","نوفمبر","ديسمبر"]
[null,{"$f":"SUMIFS('مدفوعات الطلاب'!$B:$B,'مدفوعات الطلاب'!$A:$A,حساب!$D$3,'مدفوعات الطلاب'!$D:$D,حساب!B$7)","v":4},{"$f":"SUMIFS('مدفوعات الطلاب'!$B:$B,'مدفوعات الطلاب'!$A:$A,حساب!$D$3,'مدفوعات الطلاب'!$D:$D,حساب!C$7)","v":0},{"$f":"SUMIFS('مدفوعات الطلاب'!$B:$B,'مدفوعات الطلاب'!$A:$A,حساب!$D$3,'مدفوعات الطلاب'!$D:$D,حساب!D$7)","v":0},{"$f":"SUMIFS('مدفوعات الطلاب'!$B:$B,'مدفوعات الطلاب'!$A:$A,حساب!$D$3,'مدفوعات الطلاب'!$D:$D,حساب!E$7)","v":0},{"$f":"SUMIFS('مدفوعات الطلاب'!$B:$B,'مدفوعات الطلاب'!$A:$A,حساب!$D$3,'مدفوعات الطلاب'!$D:$D,حساب!F$7)","v":0},{"$f":"SUMIFS('مدفوعات الطلاب'!$B:$B,'مدفوعات الطلاب'!$A:$A,حساب!$D$3,'مدفوعات الطلاب'!$D:$D,حساب!G$7)","v":0},null,"الشهر","يوليه","أغسطس","سبتمبر","أكتوبر","نوفمبر","ديسمبر"]
[null,null,"اجمالى الطالب",{"$f":"B5+C5+D5+E5+F5+G5+B8+C8+D8+E8+F8+G8","v":61},null,null,null,null,"غياب",{"$f":"SUMIFS('غياب الطلاب'!$B:$B,'غياب الطلاب'!$A:$A,حساب!$J$3,'غياب الطلاب'!$C:$C,حساب!$O$3,'غياب الطلاب'!$E:$E,حساب!J$8)","v":9},{"$f":"SUMIFS('غياب الطلاب'!$B:$B,'غياب الطلاب'!$A:$A,حساب!$J$3,'غياب الطلاب'!$E:$E,حساب!K$8)","v":0},{"$f":"SUMIFS('غياب الطلاب'!$B:$B,'غياب الطلاب'!$A:$A,حساب!$J$3,'غياب الطلاب'!$E:$E,حساب!L$8)","v":0},{"$f":"SUMIFS('غياب الطلاب'!$B:$B,'غياب الطلاب'!$A:$A,حساب!$J$3,'غياب الطلاب'!$E:$E,حساب!M$8)","v":0},{"$f":"SUMIFS('غياب الطلاب'!$B:$B,'غياب الطلاب'!$A:$A,حساب!$J$3,'غياب الطلاب'!$E:$E,حساب!N$8)","v":0},{"$f":"SUMIFS('غياب الطلاب'!$B:$B,'غياب الطلاب'!$A:$A,حساب!$J$3,'غياب الطلاب'!$E:$E,حساب!O$8)","v":0}]
[null,null,"جملة الكل",{"$f":"SUM('مدفوعات الطلاب'!$B:$B)","v":61},null,null,null,null,"بعذر او بدون عذر",{"$f":"SUMIFS('غياب الطلاب'!$B:$B,'غياب الطلاب'!$A:$A,حساب!$J$3,'غياب الطلاب'!$C:$C,حساب!$O$3,'غياب الطلاب'!$E:$E,حساب!J$8)","v":9},{"$f":"SUMIFS('غياب الطلاب'!$B:$B,'غياب الطلاب'!$A:$A,حساب!$J$3,'غياب الطلاب'!$C:$C,حساب!$O$3,'غياب الطلاب'!$E:$E,حساب!K$8)","v":0},{"$f":"SUMIFS('غياب الطلاب'!$B:$B,'غياب الطلاب'!$A:$A,حساب!$J$3,'غياب الطلاب'!$C:$C,حساب!$O$3,'غياب الطلاب'!$E:$E,حساب!L$8)","v":0},{"$f":"SUMIFS('غياب الطلاب'!$B:$B,'غياب الطلاب'!$A:$A,حساب!$J$3,'غياب الطلاب'!$C:$C,حساب!$O$3,'غياب الطلاب'!$E:$E,حساب!M$8)","v":0},{"$f":"SUMIFS('غياب الطلاب'!$B:$B,'غياب الطلاب'!$A:$A,حساب!$J$3,'غياب الطلاب'!$C:$C,حساب!$O$3,'غياب الطلاب'!$E:$E,حساب!N$8)","v":0},{"$f":"SUMIFS('غياب الطلاب'!$B:$B,'غياب الطلاب'!$A:$A,حساب!$J$3,'غياب الطلاب'!$C:$C,حساب!$O$3,'غياب الطلاب'!$E:$E,حساب!O$8)","v":0}]
[]
[null,"مدفوعات للعاملين رواتب",null,null,null,null,null,null,null,"جملة","غياب",{"$f":"O3","v":"بعذر"}]
[null,null,"الاسم","موظف1",null,null,null,null,null,null,{"$f":"J5+K5+L5+M5+N5+O5+J9+K9+L9+M9+N9+O9","v":11},{"$f":"SUMIFS('غياب الطلاب'!$B:$B,'غياب الطلاب'!$A:$A,حساب!$J$3,'غياب الطلاب'!$C:$C,حساب!$O$3)","v":11}]
[null,"يناير","فبراير","مارس","أبريل","مايو","يونيو"]
[null,{"$f":"SUMIFS('سداد لموظف'!$B:$B,'سداد لموظف'!$A:$A,حساب!$D$13,'سداد لموظف'!$D:$D,حساب!B$14)","v":0},{"$f":"SUMIFS('سداد لموظف'!$B:$B,'سداد لموظف'!$A:$A,حساب!$D$13,'سداد لموظف'!$D:$D,حساب!C$14)","v":0},{"$f":"SUMIFS('سداد لموظف'!$B:$B,'سداد لموظف'!$A:$A,حساب!$D$13,'سداد لموظف'!$D:$D,حساب!D$14)","v":0},{"$f":"SUMIFS('سداد لموظف'!$B:$B,'سداد لموظف'!$A:$A,حساب!$D$13,'سداد لموظف'!$D:$D,حساب!E$14)","v":0},{"$f":"SUMIFS('سداد لموظف'!$B:$B,'سداد لموظف'!$A:$A,حساب!$D$13,'سداد لموظف'!$D:$D,حساب!F$14)","v":0},{"$f":"SUMIFS('سداد لموظف'!$B:$B,'سداد لموظف'!$A:$A,حساب!$D$13,'سداد لموظف'!$D:$D,حساب!G$14)","v":0}]
[]
[null,"يوليه","أغسطس","سبتمبر","أكتوبر","نوفمبر","ديسمبر"]
[null,{"$f":"SUMIFS('سداد لموظف'!$B:$B,'سداد لموظف'!$A:$A,حساب!$D$13,'سداد لموظف'!$D:$D,حساب!B$17)","v":54},{"$f":"SUMIFS('سداد لموظف'!$B:$B,'سداد لموظف'!$A:$A,حساب!$D$13,'سداد لموظف'!$D:$D,حساب!C$17)","v":0},{"$f":"SUMIFS('سداد لموظف'!$B:$B,'سداد لموظف'!$A:$A,حساب!$D$13,'سداد لموظف'!$D:$D,حساب!D$17)","v":0},{"$f":"SUMIFS('سداد لموظف'!$B:$B,'سداد لموظف'!$A:$A,حساب!$D$13,'سداد لموظف'!$D:$D,حساب!E$17)","v":0},{"$f":"SUMIFS('سداد لموظف'!$B:$B,'سداد لموظف'!$A:$A,حساب!$D$13,'سداد لموظف'!$D:$D,حساب!F$17)","v":0},{"$f":"SUMIFS('سداد لموظف'!$B:$B,'سداد لموظف'!$A:$A,حساب!$D$13,'سداد لموظف'!$D:$D,حساب!G$17)","v":0}]
[null,null,"اجمالى الموظف",{"$f":"B15+C15+D15+E15+F15+G15+B18+C18+D18+E18+F18+G18","v":54},"اجمالى الكل",{"$f":"SUM('سداد لموظف'!$B:$B)","v":55}]

{"sheet":"الامتحان","index":7,"n_rows":3,"n_cols":3,"rows_kept":3,"cut":false,"hidden":false,"merged":[]}
[]
["الاسم","الدرجة","الشهر"]
["محمد على",33,"يوليه"]

{"sheet":"بيان","index":8,"n_rows":7,"n_cols":13,"rows_kept":7,"cut":false,"hidden":false,"merged":[]}
[]
[null,null,"اسم الطالب","اسم المجموعة",null,500]
[null,null,"محمد على2"]
[]
[null,null,null,"تصفية"]
["اسم الطالب","اسم ولى الامر","مهنة ولى الامر وعنوانه","تليفون ولى الامر","الصف والشعبة","وقت المجموعة الاول","اسم المجموعة","وقت المجموعة","يوم المجموعة الثانى","تليفون الطالب","تاريخ الحجز","التخصص","يوم المجموعة الثاني"]
["محمد على2","على","موظف","0147","الثالث اعدادى","الساعة 6 صباحا","مجموعة3","الساعة 6.5 صباحا","السبت","0258","2022-01-08","عام","الأحد"]